fUSD/lending_fUSD_20250620
["ID","MTS","AMOUNT","RATE_DAILY","PERIOD"]
[366709501,1750415611197,-640.77,0.00028493,4]
[366709502,1750415611211,-955.18,0.00028493,4]
[366709503,1750415611221,-759.69,0.00028493,4]
[366709504,1750415611231,-495.19,0.00028493,4]
[366709505,1750415611242,-1620.75,0.00028493,4]
[366709506,1750415611253,-2608.35,0.00028493,4]
[366709507,1750415611263,-1487.07,0.00028493,4]
[366709508,1750415611273,-490.0,0.00028493,4]
[366709509,1750415611284,-620.7,0.00028493,4]
[366709510,1750415611294,-2196.02,0.00028493,4]
[366709511,1750415611304,-496.69206896,0.00028493,4]
[366709512,1750415611316,-2048.55,0.00028493,4]
[366709513,1750415611326,-490.0,0.00028493,4]
[366709514,1750415611336,-1452.89,0.00028493,4]
[366709515,1750415611346,-676.1,0.00028493,4]
[366709516,1750415611356,-490.0,0.00028493,4]
[366709517,1750415611366,-3078.01,0.00028493,4]
[366709518,1750415611376,-729.0,0.00028493,4]
[366709519,1750415611386,-646.89,0.00028493,4]
[366709520,1750415611396,-490.0,0.00028493,4]
[366709521,1750415611405,-692.86,0.00028493,4]
[366709522,1750415611415,-1111.1,0.00028493,4]
[366709523,1750415611425,-726.03,0.00028493,4]
[366709524,1750415611435,-896.01,0.00028493,4]
[366709525,1750415611445,-522.54,0.00028493,4]
[366709526,1750415611455,-817.65,0.00028493,4]
[366709527,1750415611465,-1212.05,0.00028493,4]
[366709528,1750415611477,-490.0,0.00028493,4]
[366709529,1750415611487,-490.0,0.00028493,4]
[366709530,1750415611498,-1510.44,0.00028493,4]
[366709531,1750415611508,-490.0,0.00028493,4]
[366709532,1750415611517,-563.12,0.00028493,4]
[366709533,1750415611527,-17404.6,0.00028493,4]
[366709534,1750415611538,-490.0,0.00028493,4]
[366709535,1750415611547,-516.42,0.00028493,4]
[366709536,1750415611558,-1966.77,0.00028493,4]
[366709537,1750415611568,-499.64,0.00028493,4]
[366709538,1750415611578,-682.61,0.00028493,4]
[366709539,1750415611589,-496.54,0.00028493,4]
[366709540,1750415611599,-1292.76,0.00028493,4]
[366709541,1750415611610,-532.96,0.00028493,4]
[366709542,1750415611620,-490.0,0.00028493,4]
[366709543,1750415611630,-490.0,0.00028493,4]
[366709544,1750415611640,-499.01006208,0.00028493,4]
[366709545,1750415611652,-3089.65,0.00028493,4]
[366709546,1750415611661,-490.0,0.00028493,4]
[366709547,1750415611671,-490.0,0.00028493,4]
[366709548,1750415611681,-1110.49,0.00028493,4]
[366709549,1750415611690,-875.85,0.00028493,4]
[366709550,1750415611701,-808.72,0.00028493,4]
[366709551,1750415611710,-490.0,0.00028493,4]
[366709552,1750415611720,-490.0,0.00028493,4]
[366709553,1750415611730,-231.25311359,0.00028493,4]
[366709554,1750415611739,-548.1,0.00028493,4]
[366709555,1750415611750,-1116.64,0.00028493,4]
[366709556,1750415611760,-741.55,0.00028493,4]
[366709557,1750415611770,-490.0,0.00028493,4]
[366709558,1750415611780,-490.0,0.00028493,4]
[366709559,1750415611790,-900.32,0.00028493,4]
[366709560,1750415611799,-490.0,0.00028493,4]
[366709561,1750415611810,-3388.66,0.00028493,4]
[366709562,1750415611820,-490.0,0.00028493,4]
[366709563,1750415611830,-490.0,0.00028493,4]
[366709564,1750415611841,-1386.85,0.00028493,4]
[366709565,1750415611851,-2512.9,0.00028493,4]
[366709566,1750415611860,-490.0,0.00028493,4]
[366709567,1750415611870,-613.06,0.00028493,4]
[366709568,1750415611879,-7527.62,0.00028493,4]
[366709569,1750415611889,-7882.79,0.00028493,4]
[366709570,1750415611900,-1533.1,0.00028493,4]
[366709571,1750415611910,-741.74,0.00028493,4]
[366709572,1750415611919,-557.61,0.00028493,4]
[366709573,1750415611929,-2444.05,0.00028493,4]
[366709574,1750415611940,-1074.56,0.00028493,4]
[366709575,1750415611953,-490.0,0.00028493,4]
[366709576,1750415611962,-716.85,0.00028493,4]
[366709577,1750415611972,-3776.02,0.00028493,4]
[366709578,1750415611983,-600.0,0.00028493,120]
[366709579,1750415611994,-490.0,0.00028493,4]
[366709580,1750415612004,-759.29,0.00028493,4]
[366709581,1750415612015,-508.46,0.00028493,4]
[366709582,1750415612027,-490.0,0.00028493,4]
[366709583,1750415612038,-5317.42,0.00028493,4]
[366709584,1750415612049,-490.0,0.00028493,4]
[366709585,1750415612059,-490.0,0.00028493,4]
[366709586,1750415612070,-1702.18,0.00028493,4]
[366709587,1750415612081,-1502.12,0.00028493,4]
[366709588,1750415612094,-490.0,0.00028493,4]
[366709589,1750415612105,-9880.35,0.00028493,4]
[366709590,1750415612115,-670.44,0.00028493,4]
[366709591,1750415612126,-2012.16,0.00028493,4]
[366709592,1750415612135,-1936.5,0.00028493,4]
[366709593,1750415612145,-6404.69,0.00028493,4]
[366709594,1750415612156,-490.0,0.00028493,4]
[366709595,1750415612166,-490.0,0.00028493,4]
[366709596,1750415612176,-490.0,0.00028493,4]
[366709597,1750415612185,-2380.6,0.00028493,4]
[366709598,1750415612196,-1141.27,0.00028493,4]
[366709599,1750415612206,-510.99,0.00028493,4]
[366709600,1750415612216,-691.59,0.00028493,4]
[366709601,1750415612226,-490.0,0.00028493,4]
[366709602,1750415612235,-490.0,0.00028493,4]
[366709603,1750415612245,-490.0,0.00028493,4]
[366709604,1750415612255,-2450.17,0.00028493,4]
[366709605,1750415612265,-1844.2,0.00028493,4]
[366709606,1750415612275,-492.40861514,0.00028493,4]
[366709607,1750415612285,-622.58,0.00028493,4]
[366709608,1750415612295,-1419.42,0.00028493,4]
[366709609,1750415612304,-17540.73,0.00028493,4]
[366709610,1750415612314,-1227.01,0.00028493,4]
[366709611,1750415612324,-490.0,0.00028493,4]
[366709612,1750415612333,-490.0,0.00028493,4]
[366709613,1750415612343,-490.0,0.00028493,4]
[366709614,1750415612352,-490.0,0.00028493,4]
[366709615,1750415612362,-490.0,0.00028493,4]
[366709616,1750415612372,-5948.54,0.00028493,4]
[366709617,1750415612381,-957.68,0.00028493,4]
[366709618,1750415612391,-5372.22,0.00028493,4]
[366709619,1750415612402,-496.37142753,0.00028493,4]
[366709620,1750415612412,-1499.27,0.00028493,4]
[366709621,1750415612422,-1594.4,0.00028493,4]
[366709622,1750415612432,-490.0,0.00028493,4]
[366709623,1750415612441,-1525.88,0.00028493,4]
[366709624,1750415612451,-18649.49,0.00028493,4]
[366709625,1750415612462,-490.0,0.00028493,4]
[366709626,1750415612472,-662.4,0.00028493,4]
[366709627,1750415612482,-11431.71,0.00028493,4]
[366709628,1750415612492,-574.02,0.00028493,4]
[366709629,1750415612502,-490.0,0.00028493,4]
[366709630,1750415612512,-2766.75,0.00028493,4]
[366709631,1750415612522,-490.0,0.00028493,4]
[366709632,1750415612531,-1747.3,0.00028493,4]
[366709633,1750415612541,-490.0,0.00028493,4]
[366709634,1750415612552,-521.31,0.00028493,4]
[366709635,1750415612562,-1639.8,0.00028493,4]
[366709636,1750415612572,-641.47,0.00028493,4]
[366709637,1750415612582,-1452.7,0.00028493,4]
[366709638,1750415612592,-490.0,0.00028493,4]
[366709639,1750415612602,-490.0,0.00028493,4]
[366709640,1750415612611,-766.28,0.00028493,4]
[366709641,1750415612621,-1528.81,0.00028493,4]
[366709642,1750415612631,-2442.89,0.00028493,4]
[366709643,1750415612641,-490.0,0.00028493,4]
[366709644,1750415612650,-493.32124616,0.00028493,4]
[366709645,1750415612660,-974.85,0.00028493,4]
[366709646,1750415612670,-525.8,0.00028493,4]
[366709647,1750415612680,-655.26,0.00028493,4]
[366709648,1750415612690,-490.0,0.00028493,4]
[366709649,1750415612700,-187.338453,0.00028493,4]
[366709650,1750415612711,-6155.02,0.00028493,4]
[366709651,1750415612721,-1546.64,0.00028493,4]
[366709652,1750415612731,-490.0,0.00028493,4]
[366709653,1750415612741,-952.09,0.00028493,4]
[366709654,1750415612751,-2556.54,0.00028493,4]
[366709655,1750415612760,-490.0,0.00028493,4]
[366709656,1750415612770,-490.0,0.00028493,4]
[366709657,1750415612780,-1078.67,0.00028493,4]
[366709658,1750415612790,-1698.38,0.00028493,4]
[366709659,1750415612799,-7770.54,0.00028493,4]
[366709660,1750415612810,-490.0,0.00028493,4]
[366709661,1750415612820,-490.0,0.00028493,4]
[366709662,1750415612829,-490.0,0.00028493,4]
[366709663,1750415612839,-490.0,0.00028493,4]
[366709664,1750415612849,-713.18,0.00028493,4]
[366709665,1750415612859,-565.57,0.00028493,4]
[366709666,1750415612868,-1078.51,0.00028493,4]
[366709667,1750415612878,-490.0,0.00028493,4]
[366709668,1750415612888,-490.0,0.00028493,4]
[366709669,1750415612898,-490.0,0.00028493,4]
[366709670,1750415612908,-511.43,0.00028493,4]
[366709671,1750415612918,-2000.0,0.00028498,60]
[366709672,1750415612928,-1642.82,0.000285,2]
[366709673,1750415612938,-1152.53,0.000285,2]
[366709674,1750415612948,-490.0,0.00028503,4]
[366709675,1750415612958,-490.0,0.00028503,4]
[366709676,1750415612968,-490.0,0.00028503,4]
[366709677,1750415612977,-490.0,0.00028503,4]
[366709678,1750415612987,-490.0,0.00028503,4]
[366709679,1750415612997,-490.0,0.00028503,4]
[366709680,1750415613006,-709.67,0.00028503,4]
[366709681,1750415613016,-490.0,0.00028503,4]
[366709682,1750415613026,-490.0,0.00028503,4]
[366709683,1750415613036,-716.73,0.00028503,4]
[366709684,1750415613045,-490.0,0.00028503,4]
[366709685,1750415613055,-879.88,0.00028503,4]
[366709686,1750415613066,-490.0,0.00028503,4]
[366709687,1750415613076,-246.92910567,0.00028503,4]
[366709688,1750415613086,-490.0,0.00028503,4]
[366709689,1750415613096,-490.0,0.00028503,4]
[366709690,1750415613105,-490.0,0.00028503,4]
[366709691,1750415613120,-490.0,0.00028503,4]
[366709692,1750415613130,-490.0,0.00028503,4]
[366709693,1750415613141,-303.10638577,0.00028503,4]
[366709694,1750415613151,-442.15302848,0.00028503,4]
[366709695,1750415613161,-490.0,0.00028503,4]
[366709696,1750415613171,-490.0,0.00028503,4]
[366709697,1750415613181,-490.0,0.00028503,4]
[366709698,1750415613191,-1218.9,0.00028503,4]
[366709699,1750415613200,-901.28,0.00028503,4]
[366709700,1750415613212,-507.19,0.00028503,4]
[366709701,1750415613222,-490.0,0.00028503,4]
[366709702,1750415613232,-584.6,0.00028503,4]
[366709703,1750415613242,-490.0,0.00028503,4]
[366709704,1750415613252,-173.35698339,0.00028503,4]
[366709705,1750415613262,-490.0,0.00028503,4]
[366709706,1750415613272,-540.57140706,0.00028503,4]
[366709707,1750415613282,-490.0,0.00028503,4]
[366709708,1750415613293,-491.50021798,0.00028503,4]
[366709709,1750415613303,-490.0,0.00028503,4]
[366709710,1750415613312,-624.83,0.00028503,4]
[366709711,1750415613322,-490.0,0.00028503,4]
[366709712,1750415613331,-490.0,0.00028503,4]
[366709713,1750415613342,-947.23,0.00028503,4]
[366709714,1750415613355,-497.34,0.00028503,4]
[366709715,1750415613379,-1160.0,0.00028503,4]
[366709716,1750415613398,-682.25,0.00028503,4]
[366709717,1750415613420,-676.69,0.00028503,4]
[366709718,1750415613443,-798.57,0.00028503,4]
[366709719,1750415613460,-490.0,0.00028503,4]
[366709720,1750415613481,-490.0,0.00028503,4]
[366709721,1750415613503,-490.0,0.00028503,4]
[366709722,1750415613524,-490.0,0.00028503,4]
[366709723,1750415613546,-490.0,0.00028503,4]
[366709724,1750415613566,-994.26,0.00028503,4]
[366709725,1750415613586,-490.0,0.00028503,4]
[366709726,1750415613606,-490.0,0.00028503,4]
[366709727,1750415613623,-504.86,0.00028503,4]
[366709728,1750415613644,-1262.16,0.00028503,4]
[366709729,1750415613659,-490.0,0.00028503,4]
[366709730,1750415613676,-526.89,0.00028503,4]
[366709731,1750415613694,-490.0,0.00028503,4]
[366709732,1750415613711,-490.0,0.00028503,4]
[366709733,1750415613729,-562.08,0.00028503,4]
[366709734,1750415613746,-545.75,0.00028503,4]
[366709735,1750415613762,-1061.69,0.00028503,4]
[366709736,1750415613779,-490.0,0.00028503,4]
[366709737,1750415613797,-809.96,0.00028503,4]
[366709738,1750415613816,-631.0,0.00028503,4]
[366709739,1750415613831,-1378.13,0.00028503,4]
[366709740,1750415613857,-490.0,0.00028503,4]
[366709741,1750415613874,-490.0,0.00028503,4]
[366709742,1750415613890,-490.0,0.00028503,4]
[366709743,1750415613908,-559.26,0.00028503,4]
[366709744,1750415613926,-490.0,0.00028503,4]
[366709745,1750415613942,-707.03,0.00028503,4]
[366709746,1750415613959,-490.0,0.00028503,4]
[366709747,1750415613975,-2021.51,0.00028503,4]
[366709748,1750415613992,-547.36,0.00028503,4]
[366709749,1750415614009,-1831.85,0.00028503,4]
[366709750,1750415614024,-606.95,0.00028503,4]
[366709751,1750415614040,-1476.65,0.00028503,4]
[366709752,1750415614057,-490.0,0.00028503,4]
[366709753,1750415614074,-511.66573821,0.00028503,4]
[366709754,1750415614092,-1005.12,0.00028503,4]
[366709755,1750415614109,-1516.56,0.00028503,4]
[366709756,1750415614125,-600.95,0.00028503,4]
[366709757,1750415614142,-490.0,0.00028503,4]
[366709758,1750415614158,-490.0,0.00028503,4]
[366709759,1750415614173,-490.0,0.00028503,4]
[366709760,1750415614190,-490.0,0.00028503,4]
[366709761,1750415614207,-302.3,0.00028503,4]
[366709762,1750415614226,-1853.92,0.00028503,4]
[366709763,1750415614243,-490.0,0.00028503,4]
[366709764,1750415614261,-1207.48,0.00028503,4]
[366709765,1750415614279,-970.42,0.00028503,4]
[366709766,1750415614296,-1085.47,0.00028503,4]
[366709767,1750415614314,-490.0,0.00028503,4]
[366709768,1750415614332,-555.86,0.00028503,4]
[366709769,1750415614349,-1321.89,0.00028503,4]
[366709770,1750415614366,-907.27,0.00028503,4]
[366709771,1750415614381,-490.0,0.00028503,4]
[366709772,1750415614398,-490.0,0.00028503,4]
[366709773,1750415614413,-490.0,0.00028503,4]
[366709774,1750415614429,-1835.37,0.00028503,4]
[366709775,1750415614447,-490.0,0.00028503,4]
[366709776,1750415614465,-556.59,0.00028503,4]
[366709777,1750415614483,-1052.99,0.00028503,4]
[366709778,1750415614500,-490.0,0.00028503,4]
[366709779,1750415614517,-567.01,0.00028503,4]
[366709780,1750415614534,-492.0,0.00028503,4]
[366709781,1750415614549,-819.36,0.00028503,4]
[366709782,1750415614566,-2175.07,0.00028503,4]
[366709783,1750415614581,-490.0,0.00028503,4]
[366709784,1750415614596,-789.56,0.00028503,4]
[366709785,1750415614612,-1474.82,0.00028503,4]
[366709786,1750415614627,-490.0,0.00028503,4]
[366709787,1750415614644,-1752.57,0.00028503,4]
[366709788,1750415614659,-490.0,0.00028503,4]
[366709789,1750415614675,-490.0,0.00028503,4]
[366709790,1750415614691,-2581.66,0.00028503,4]
[366709791,1750415614707,-490.0,0.00028503,4]
[366709792,1750415614723,-1705.52,0.00028503,4]
[366709793,1750415614739,-490.0,0.00028503,4]
[366709794,1750415614754,-1306.7,0.00028503,4]
[366709795,1750415614769,-525.6,0.00028503,4]
[366709796,1750415614784,-490.0,0.00028503,4]
[366709797,1750415614799,-737.94,0.00028503,4]
[366709798,1750415614814,-490.0,0.00028503,4]
[366709799,1750415614829,-490.0,0.00028503,4]
[366709800,1750415614844,-490.0,0.00028503,4]
[366709801,1750415614859,-616.11,0.00028503,4]
[366709802,1750415614876,-749.2,0.00028503,4]
[366709803,1750415614891,-1450.49,0.00028503,4]
[366709804,1750415614907,-733.41,0.00028503,4]
[366709805,1750415614923,-490.0,0.00028503,4]
[366709806,1750415614938,-2517.34,0.00028503,4]
[366709807,1750415614955,-490.0,0.00028503,4]
[366709808,1750415614970,-490.0,0.00028503,4]
[366709809,1750415614984,-647.98,0.00028503,4]
[366709810,1750415614998,-1420.61,0.00028503,4]
[366709811,1750415615013,-666.21,0.00028503,4]
[366709812,1750415615028,-490.0,0.00028503,4]
[366709813,1750415615041,-798.3,0.00028503,4]
[366709814,1750415615057,-490.0,0.00028503,4]
[366709815,1750415615071,-490.0,0.00028503,4]
[366709816,1750415615087,-490.0,0.00028503,4]
[366709817,1750415615103,-629.3,0.00028503,4]
[366709818,1750415615119,-744.22,0.00028503,4]
[366709819,1750415615135,-490.0,0.00028503,4]
[366709820,1750415615151,-824.71,0.00028503,4]
[366709821,1750415615169,-1579.86,0.00028503,4]
[366709822,1750415615185,-490.0,0.00028503,4]
[366709823,1750415615200,-509.05,0.00028503,4]
[366709824,1750415615219,-2238.49,0.00028503,4]
[366709825,1750415615234,-490.0,0.00028503,4]
[366709826,1750415615250,-597.0,0.00028503,4]
[366709827,1750415615266,-490.0,0.00028503,4]
[366709828,1750415615282,-933.51,0.00028503,4]
[366709829,1750415615298,-490.0,0.00028503,4]
[366709830,1750415615313,-822.58,0.00028503,4]
[366709831,1750415615329,-838.77,0.00028503,4]
[366709832,1750415615347,-504.68,0.00028503,4]
[366709833,1750415615362,-507.81,0.00028503,4]
[366709834,1750415615378,-490.0,0.00028503,4]
[366709835,1750415615394,-490.0,0.00028503,4]
[366709836,1750415615411,-490.0,0.00028503,4]
[366709837,1750415615427,-572.5,0.00028503,4]
[366709838,1750415615443,-490.0,0.00028503,4]
[366709839,1750415615459,-490.0,0.00028503,4]
[366709840,1750415615475,-1129.55,0.00028503,4]
[366709841,1750415615489,-858.91,0.00028503,4]
[366709842,1750415615504,-490.0,0.00028503,4]
[366709843,1750415615520,-800.69,0.00028503,4]
[366709844,1750415615536,-1036.77,0.00028503,4]
[366709845,1750415615552,-490.0,0.00028503,4]
[366709846,1750415615568,-1310.63,0.00028503,4]
[366709847,1750415615584,-490.0,0.00028503,4]
[366709848,1750415615599,-867.83,0.00028503,4]
[366709849,1750415615614,-545.19,0.00028503,4]
[366709850,1750415615631,-1236.78,0.00028503,4]
[366709851,1750415615646,-490.0,0.00028503,4]
[366709852,1750415615661,-490.0,0.00028503,4]
[366709853,1750415615676,-509.27,0.00028503,4]
[366709854,1750415615692,-490.0,0.00028503,4]
[366709855,1750415615708,-1804.01,0.00028503,4]
[366709856,1750415615724,-490.0,0.00028503,4]
[366709857,1750415615739,-490.0,0.00028503,4]
[366709858,1750415615755,-1718.47,0.00028503,4]
[366709859,1750415615769,-490.0,0.00028503,4]
[366709860,1750415615786,-528.49,0.00028503,4]
[366709861,1750415615803,-490.0,0.00028503,4]
[366709862,1750415615819,-808.69,0.00028503,4]
[366709863,1750415615835,-490.0,0.00028503,4]
[366709864,1750415615851,-490.0,0.00028503,4]
[366709865,1750415615867,-490.0,0.00028503,4]
[366709866,1750415615883,-726.13,0.00028503,4]
[366709867,1750415615898,-490.0,0.00028504,4]
[366709868,1750415615916,-490.0,0.00028504,4]
[366709869,1750415615931,-924.0,0.00028504,4]
[366709870,1750415615946,-490.0,0.00028504,4]
[366709871,1750415615962,-490.0,0.00028504,4]
[366709872,1750415615977,-490.0,0.00028504,4]
[366709873,1750415615993,-490.0,0.00028504,4]
[366709874,1750415616009,-555.64,0.00028504,4]
[366709875,1750415616024,-490.0,0.00028504,4]
[366709876,1750415616041,-560.67,0.00028504,4]
[366709877,1750415616057,-714.6,0.00028504,4]
[366709878,1750415616072,-490.0,0.00028504,4]
[366709879,1750415616087,-490.0,0.00028504,4]
[366709880,1750415616102,-584.97,0.00028504,4]
[366709881,1750415616119,-490.0,0.00028504,4]
[366709882,1750415616134,-528.72,0.00028504,4]
[366709883,1750415616150,-257.48094893,0.00028504,4]
[366709884,1750415616166,-490.0,0.00028504,4]
[366709885,1750415616182,-490.0,0.00028504,4]
[366709886,1750415616196,-490.0,0.00028504,4]
[366709887,1750415616212,-490.0,0.00028504,4]
[366709888,1750415616227,-595.37,0.00028504,4]
[366709889,1750415616243,-775.47665243,0.00028521,19]
[366709890,1750415616258,-3334.0,0.00028523,2]
[366709891,1750415616274,-946.0,0.00028523,2]
[366709892,1750415616289,-533.44,0.00028524,4]
[366709893,1750415616304,-202.0,0.0002853,30]
[366709894,1750415616319,-211.0,0.0002858,2]
[366709895,1750415616334,-209.0,0.0002858,2]
[366709896,1750415616351,-700.0,0.00028582,7]
[366709897,1750415616366,-231.28369723,0.00028597,2]
[366709898,1750415616382,-1009.85,0.000286,20]
[366709899,1750415616396,-165.7,0.000286,19]
[366709900,1750415616412,-216.62,0.000286,2]
[366709901,1750415616428,-250.0,0.000286,7]
[366709902,1750415616443,-250.0,0.000286,7]
[366709903,1750415616459,-250.0,0.000286,7]
[366709904,1750415616475,-250.0,0.000286,7]
[366709905,1750415616491,-250.0,0.000286,7]
[366709906,1750415616506,-1285.1,0.000286,7]
[366709907,1750415616521,-150.0,0.000286,2]
[366709908,1750415616537,-490.0,0.00028631,4]
[366709909,1750415616554,-775.47665243,0.00028693,19]
[366709910,1750415616569,-150.0,0.00028697,7]
[366709911,1750415616585,-150.0,0.00028697,7]
[366709912,1750415616601,-150.0,0.00028697,7]
[366709913,1750415616617,-150.0,0.00028697,7]
[366709914,1750415616632,-150.0,0.00028697,7]
[366709915,1750415616647,-150.0,0.00028697,7]
[366709916,1750415616663,-855.14,0.00028735,4]
[366709917,1750415616677,-490.0,0.00028735,4]
[366709918,1750415616691,-941.29,0.00028735,4]
[366709919,1750415616707,-710.39,0.00028745,4]
[366709920,1750415616722,-2657.88,0.00028745,4]
[366709921,1750415616736,-678.91,0.00028745,4]
[366709922,1750415616753,-951.97,0.00028745,4]
[366709923,1750415616768,-934.95,0.00028745,4]
[366709924,1750415616784,-982.82,0.00028745,4]
[366709925,1750415616799,-490.0,0.00028745,4]
[366709926,1750415616815,-1196.7,0.00028745,4]
[366709927,1750415616832,-905.13,0.00028745,4]
[366709928,1750415616847,-733.67,0.00028745,4]
[366709929,1750415616862,-623.14,0.00028745,4]
[366709930,1750415616877,-858.58,0.00028745,4]
[366709931,1750415616892,-4996.22,0.00028745,4]
[366709932,1750415616908,-1411.02,0.00028745,4]
[366709933,1750415616923,-490.0,0.00028745,4]
[366709934,1750415616939,-566.53,0.00028745,4]
[366709935,1750415616955,-673.04,0.00028745,4]
[366709936,1750415616971,-1000.0,0.00028745,4]
[366709937,1750415616987,-560.81,0.00028745,4]
[366709938,1750415617002,-5470.75,0.00028745,4]
[366709939,1750415617018,-490.0,0.00028745,4]
[366709940,1750415617034,-2781.24,0.00028745,4]
[366709941,1750415617049,-608.76,0.00028745,4]
[366709942,1750415617065,-622.46,0.00028745,4]
[366709943,1750415617081,-2671.47,0.00028745,4]
[366709944,1750415617096,-490.0,0.00028745,4]
[366709945,1750415617112,-807.14,0.00028745,4]
[366709946,1750415617127,-490.0,0.00028755,4]
[366709947,1750415617144,-490.0,0.00028755,4]
[366709948,1750415617159,-490.0,0.00028755,4]
[366709949,1750415617175,-490.0,0.00028755,4]
[366709950,1750415617192,-525.64,0.00028755,4]
[366709951,1750415617209,-498.4780683,0.00028755,4]
[366709952,1750415617228,-490.0,0.00028755,4]
[366709953,1750415617243,-490.0,0.00028755,4]
[366709954,1750415617259,-490.0,0.00028755,4]
[366709955,1750415617275,-824.86,0.00028755,4]
[366709956,1750415617290,-490.0,0.00028755,4]
[366709957,1750415617305,-490.0,0.00028755,4]
[366709958,1750415617321,-1042.35,0.00028755,4]
[366709959,1750415617336,-2063.423116,0.00028755,4]
[366709960,1750415617351,-1129.83,0.00028755,4]
[366709961,1750415617366,-490.0,0.00028755,4]
[366709962,1750415617381,-490.0,0.00028755,4]
[366709963,1750415617405,-2980.629608,0.00028755,4]
[366709964,1750415617421,-1443.11,0.00028755,4]
[366709965,1750415617436,-6813.75,0.00028755,4]
[366709966,1750415617451,-490.0,0.00028755,4]
[366709967,1750415617466,-977.73,0.00028755,4]
[366709968,1750415617489,-1060.66,0.00028755,4]
[366709969,1750415617512,-1271.04,0.00028755,4]
[366709970,1750415617533,-490.0,0.00028755,4]
[366709971,1750415617555,-1687.17,0.00028755,4]
[366709972,1750415617576,-490.0,0.00028755,4]
[366709973,1750415617596,-1425.44,0.00028755,4]
[366709974,1750415617614,-1260.23,0.00028755,4]
[366709975,1750415617634,-535.62,0.00028755,4]
[366709976,1750415617653,-600.47,0.00028755,4]
[366709977,1750415617671,-490.0,0.00028755,4]
[366709978,1750415618518,-7447.5,0.00028755,4]
[366709979,1750415618552,-490.0,0.00028755,4]
[366709980,1750415618564,-490.0,0.00028755,4]
[366709981,1750415618574,-998.98,0.00028755,4]
[366709982,1750415618584,-490.0,0.00028755,4]
[366709983,1750415618596,-1377.1,0.00028755,4]
[366709984,1750415618606,-4861.36,0.00028755,4]
[366709985,1750415618616,-1977.29,0.00028755,4]
[366709986,1750415618626,-1276.4,0.00028755,4]
[366709987,1750415618637,-2235.26,0.00028755,4]
[366709988,1750415618648,-2488.9,0.00028755,4]
[366709989,1750415618657,-1190.82,0.00028755,4]
[366709990,1750415618668,-712.91,0.00028755,4]
[366709991,1750415618678,-1879.2,0.00028755,4]
[366709992,1750415618688,-490.0,0.00028755,4]
[366709993,1750415618698,-3348.43,0.00028755,4]
[366709994,1750415618708,-2145.92,0.00028755,4]
[366709995,1750415618718,-3119.56,0.00028755,4]
[366709996,1750415618728,-3273.4,0.00028755,4]
[366709997,1750415618738,-490.0,0.00028757,4]
[366709998,1750415618748,-490.0,0.00028757,4]
[366709999,1750415618757,-490.0,0.00028757,4]
[366710000,1750415618767,-490.0,0.00028757,4]